fUSD/lending_fUSD_20260324
["ID","MTS","AMOUNT","RATE_DAILY","PERIOD"]
[408866739,1774357832627,-500.0,0.00014173,2]
[408866740,1774357832637,-500.0,0.00014173,2]
[408866741,1774357832648,-500.0,0.00014173,2]
[408866742,1774357832659,-500.0,0.00014173,2]
[408866743,1774357832669,-167.4050377,0.00014173,2]
[408866744,1774357832678,-166.66,0.00014216,2]
[408866745,1774357832688,-1836.69128099,0.00014264,2]
[408866746,1774357832698,-600.0,0.000143,2]
[408866747,1774357832710,-600.0,0.000143,2]
[408866748,1774357832720,-637.10771643,0.00014322,2]
[408866749,1774357832730,-150.0,0.00014359,2]
[408866750,1774357832739,-2000.0,0.00014359,2]
[408866751,1774357832748,-1836.69128099,0.00014468,2]
[408866752,1774357832758,-228.43578587,0.00014477,2]
[408866753,1774357832767,-166.66,0.00014503,2]
[408866754,1774357832777,-150.99,0.00014504,2]
[408866755,1774357832786,-637.10771643,0.00014585,2]
[408866756,1774357832795,-500.0,0.000146,5]
[408866757,1774357832804,-1836.69128099,0.00014673,2]
[408866758,1774357832813,-327.8108,0.0001469,2]
[408866759,1774357832823,-1000.0,0.000147,5]
[408866760,1774357832832,-166.66,0.0001479,2]
[408866761,1774357832841,-166.66,0.0001479,2]
[408866762,1774357832850,-5000.0,0.000148,2]
[408866763,1774357832860,-9993.72996145,0.000148,2]
[408866764,1774357832872,-898.81911599,0.000148,2]
[408866765,1774357832881,-365.39966668,0.000148,2]
[408866766,1774357832890,-1500.0,0.000148,5]
[408866767,1774357832899,-637.10771643,0.00014848,2]
[408866768,1774357832909,-500.0,0.00014873,2]
[408866769,1774357832919,-500.0,0.00014873,2]
[408866770,1774357832928,-576.85304714,0.00014873,2]
[408866771,1774357832939,-547.70188919,0.00014873,2]
[408866772,1774357832948,-500.0,0.00014873,2]
[408866773,1774357832957,-500.0,0.00014873,2]
[408866774,1774357833214,-500.0,0.00014873,2]
[408866775,1774357833223,-500.0,0.00014873,2]
[408866776,1774357833233,-1836.69128099,0.00014877,2]
[408866777,1774357833242,-166.08424682,0.0001489,2]
[408866778,1774357833252,-500.0,0.00014899,2]
[408866779,1774357833261,-500.0,0.00014899,2]
[408866780,1774357833270,-500.0,0.00014899,2]
[408866781,1774357833280,-150.52634921,0.00014899,2]
[408866782,1774357833289,-500.0,0.00014899,2]
[408866783,1774357833299,-500.0,0.00014899,2]
[408866784,1774357833308,-500.0,0.00014899,2]
[408866785,1774357833317,-289.25126002,0.00014899,2]
[408866786,1774357833326,-500.0,0.00014899,2]
[408866787,1774357833336,-455.70523566,0.00014899,2]
[408866788,1774357833344,-500.0,0.00014899,2]
[408866789,1774357833354,-500.0,0.00014899,2]
[408866790,1774357833363,-500.0,0.00014899,2]
[408866791,1774357833372,-500.0,0.00014899,2]
[408866792,1774357833382,-500.0,0.00014899,2]
[408866793,1774357833391,-500.0,0.00014899,2]
[408866794,1774357833400,-405.4389704,0.00014899,2]
[408866795,1774357833409,-2100.0,0.000149,5]
[408866796,1774357833419,-300.0,0.00015,2]
[408866797,1774357833428,-898.81911597,0.0001502,2]
[408866798,1774357833438,-433.55,0.00015056,2]
[408866799,1774357833447,-166.66,0.00015077,2]
[408866800,1774357833456,-1836.69128099,0.00015082,2]
[408866801,1774357833466,-637.10771643,0.00015111,2]
[408866802,1774357833475,-500.0,0.00015161,2]
[408866803,1774357833484,-500.0,0.00015161,2]
[408866804,1774357833493,-500.0,0.00015161,2]
[408866805,1774357833504,-9552.16786547,0.00015161,2]
[408866806,1774357833515,-500.0,0.00015161,2]
[408866807,1774357833524,-500.0,0.00015161,2]
[408866808,1774357833533,-500.0,0.00015161,2]
[408866809,1774357833543,-389.04698715,0.00015161,2]
[408866810,1774357833553,-500.0,0.00015161,2]
[408866811,1774357833562,-516.47340423,0.00015161,2]
[408866812,1774357833571,-500.0,0.00015161,2]
[408866813,1774357833581,-500.0,0.00015161,2]
[408866814,1774357833590,-500.0,0.00015161,2]
[408866815,1774357833599,-500.0,0.00015161,2]
[408866816,1774357833608,-500.0,0.00015161,2]
[408866817,1774357833618,-500.0,0.00015161,2]
[408866818,1774357833628,-500.0,0.00015161,2]
[408866819,1774357833637,-500.0,0.00015161,2]
[408866820,1774357833648,-500.0,0.00015161,2]
[408866821,1774357833657,-151.0,0.00015161,2]
[408866822,1774357833667,-500.0,0.00015161,2]
[408866823,1774357833676,-500.0,0.00015161,2]
[408866824,1774357833685,-250.0,0.00015161,2]
[408866825,1774357833696,-335.32119913,0.00015161,2]
[408866826,1774357833707,-262.90206542,0.00015161,2]
[408866827,1774357833716,-9905.5980765,0.00015216,2]
[408866828,1774357833726,-500.0,0.00015216,2]
[408866829,1774357833736,-151.0,0.00015216,2]
[408866830,1774357833746,-272.62944185,0.00015216,2]
[408866831,1774357833755,-898.81911597,0.0001524,2]
[408866832,1774357833764,-10272.10520533,0.00015271,2]
[408866833,1774357833774,-500.0,0.00015271,2]
[408866834,1774357833783,-209.50441537,0.00015271,2]
[408866835,1774357833792,-346.13114041,0.00015271,2]
[408866836,1774357833802,-255.0,0.00015272,2]
[408866837,1774357833811,-719.0,0.00015285,5]
[408866838,1774357833820,-1836.69128099,0.00015286,2]
[408866839,1774357833830,-1736.2162243,0.00015326,2]
[408866840,1774357833839,-500.0,0.00015326,2]
[408866841,1774357833849,-9993.72996143,0.0001535,2]
[408866842,1774357833860,-365.39966666,0.0001535,2]
[408866843,1774357833872,-637.10771643,0.00015374,2]
[408866844,1774357833881,-2600.0,0.000154,5]
[408866845,1774357833890,-420.0,0.000154,2]
[408866846,1774357833901,-1000.0,0.00015421,2]
[408866847,1774357833910,-500.0,0.00015421,2]
[408866848,1774357833919,-1000.0,0.00015421,2]
[408866849,1774357833929,-500.0,0.00015421,2]
[408866850,1774357833939,-1000.0,0.00015421,2]
[408866851,1774357833948,-898.81911597,0.0001546,2]
[408866852,1774357833957,-1836.69128099,0.00015491,2]
[408866853,1774357833966,-500.0,0.000155,5]
[408866854,1774357833976,-300.0,0.00015571,2]
[408866855,1774357833985,-500.0,0.000156,5]
[408866856,1774357833995,-637.10771643,0.00015637,2]
[408866857,1774357834004,-898.81911597,0.0001568,2]
[408866858,1774357834013,-1836.69128099,0.00015695,2]
[408866859,1774357834023,-500.0,0.000157,5]
[408866860,1774357834032,-500.0,0.00015711,2]
[408866861,1774357834041,-219.584,0.00015735,2]
[408866862,1774357834051,-500.0,0.00015773,2]
[408866863,1774357834060,-604.01853711,0.00015774,2]
[408866864,1774357834071,-500.0,0.000158,5]
[408866865,1774357834080,-924.0,0.00015805,2]
[408866866,1774357834090,-1215.0,0.00015805,2]
[408866867,1774357834100,-415.0,0.00015805,2]
[408866868,1774357834109,-6009.0,0.00015805,2]
[408866869,1774357834118,-350.0,0.00015855,2]
[408866870,1774357834127,-1836.69128099,0.000159,2]
[408866871,1774357834137,-965.0,0.000159,5]
[408866872,1774357834146,-637.10771643,0.000159,2]
[408866873,1774357834156,-9993.72996143,0.000159,2]
[408866874,1774357834165,-898.81911597,0.000159,2]
[408866875,1774357834175,-365.39966666,0.000159,2]
[408866876,1774357834184,-899.0,0.000159,5]
[408866877,1774357834193,-1500.0,0.00015968,2]
[408866878,1774357834203,-1000.0,0.00015968,2]
[408866879,1774357834212,-928.2534826,0.00015969,2]
[408866880,1774357834223,-500.0,0.00015973,2]
[408866881,1774357834234,-214.75693323,0.00015973,2]
[408866882,1774357834243,-500.0,0.00015973,2]
[408866883,1774357834252,-348.67349795,0.00015973,2]
[408866884,1774357834262,-171.1954952,0.00015996,2]
[408866885,1774357834271,-42184.9376212,0.00015996,2]
[408866886,1774357834281,-151.0,0.00015997,2]
[408866887,1774357834293,-204.07600257,0.00015999,5]
[408866888,1774357834302,-519366.30985471,0.00016,2]
[408866889,1774357834685,-927.69623708,0.00016,2]
[408866896,1774357837463,-1407.27216267,0.00016,2]
[408866897,1774357837475,-5575.4622959,0.00016,2]
[408866898,1774357837486,-679.93676196,0.00016,2]
[408866899,1774357837501,-1962.4055682,0.00016,2]
[408866900,1774357837524,-3050.45191415,0.00016,2]
[408866901,1774357837546,-5155.157013,0.00016,2]
[408866902,1774357837563,-1364.88945289,0.00016,2]
[408866903,1774357837576,-1554.53461667,0.00016,2]
[408866904,1774357837589,-4649969.93324204,0.00016,2]
[408866905,1774357837650,-1028.42167164,0.00016,2]
[408866906,1774357839659,-415.0,0.000158,2]
[408866907,1774357839862,-660.96795705,0.000158,2]
[408866908,1774357839876,-590.72355662,0.000158,2]
[408866909,1774357839887,-333.30848633,0.000158,2]
[408866910,1774357839897,-2000.0,0.000159,2]
[408866911,1774357839906,-3881.63447697,0.00016,2]
[408866912,1774357839918,-1435.87614288,0.00016,2]
[408866913,1774357840132,-398.23705892,0.000157,2]
[408866925,1774357843880,-2000.0,0.000154,2]
[408866926,1774357843889,-2000.0,0.000155,2]
[408866927,1774357843899,-2000.0,0.000156,2]
[408866928,1774357843908,-1601.76294108,0.000157,2]
[408866929,1774357843917,-3762.0,0.0001599,2]
[408866930,1774357843927,-2402.8577515,0.00016,2]
[408866933,1774357845334,-4296.75088854,0.00016,2]
[408866934,1774357845346,-24435.45467934,0.00016,2]
[408866935,1774357845446,-3677.2977,0.00016,2]
[408866936,1774357868482,2932.382416,7.945e-05,2]
[408866937,1774358021335,173.0,6.89e-05,2]
[408866938,1774358021538,165.0,6.89e-05,2]
[408866939,1774358022360,165.0,6.89e-05,2]
[408866940,1774358022409,165.0,6.89e-05,2]
[408866941,1774358022453,165.0,6.89e-05,2]
[408866942,1774358022500,165.0,6.89e-05,2]
[408866943,1774358022640,165.0,6.89e-05,2]
[408866944,1774358022903,165.0,6.89e-05,2]
[408866945,1774358023112,165.0,6.89e-05,2]
[408866946,1774358357835,574.627584,7.085e-05,2]
[408866947,1774358357859,573.072416,7.085e-05,2]
[408866948,1774358358047,1147.7,7.458e-05,2]
[408866949,1774358358259,1147.7,7.831e-05,2]
[408866950,1774358358456,1147.7,8.204e-05,2]
[408866951,1774358358660,983.837584,8.576e-05,2]
[408866952,1774358358684,163.862416,8.576e-05,2]
[408866953,1774358359184,1147.7,8.949e-05,2]
[408866954,1774358359293,1147.7,9.322e-05,2]
[408866955,1774358359493,1147.7,9.695e-05,2]
[408866956,1774358359796,1147.7,0.00010068,2]
[408866957,1774358360000,245.347584,0.00010441,2]
[408866958,1774358360024,902.352416,0.00010441,2]
[408866959,1774358360225,1147.7,0.00010814,2]
[408866964,1774358474639,5000.01,0.00011,5]
[408866965,1774358474660,532.99,0.00011,5]
[408866966,1774358783191,4467.02,8e-05,2]
[408866967,1774358783213,232.99,8e-05,2]
[408866968,1774358852811,205.0,9.8e-05,2]
[408866969,1774358937401,4562.02,9.5e-05,3]
[408866970,1774358937424,5000.01,9.5e-05,3]
[408866971,1774358937447,5000.01,9.5e-05,3]
[408866972,1774358937470,399.947584,9.5e-05,3]
[408866973,1774358937499,266334.34144561,9.5e-05,3]
[408866974,1774358950137,-1153.567646,0.00011114,2]
[408866975,1774358950157,-250.0,0.0001117,2]
[408866976,1774358950178,-250.0,0.00011181,2]
[408866977,1774358950202,-500.0,0.00011182,2]
[408866978,1774358950223,-500.0,0.00011182,2]
[408866979,1774358950245,-577.6093056,0.00011182,2]
[408866980,1774358950266,-172.63637732,0.00011182,2]
[408866981,1774358950287,-151.0,0.00011182,2]
[408866982,1774358950311,-151.0,0.00011182,2]
[408866983,1774358950332,-151.0,0.00011182,2]
[408866984,1774358950352,-151.0,0.00011182,2]
[408866985,1774358950372,-151.0,0.00011182,2]
[408866986,1774358950392,-151.0,0.00011182,2]
[408866987,1774358950412,-151.0,0.00011182,2]
[408866988,1774358950432,-151.0,0.00011182,2]
[408866989,1774358950452,-21.84887246,0.00011182,2]
[408866990,1774358967071,2979.09,0.00017,60]
[408867000,1774359031539,-2397.53214491,0.00011179,2]
[408867001,1774359031548,-281.29461879,0.00011179,2]
[408867002,1774359031558,-279.0,0.00011179,2]
[408867003,1774359031567,-129.15112754,0.00011182,2]
[408867004,1774359031577,-151.0,0.00011182,2]
[408867005,1774359031586,-151.0,0.00011182,2]
[408867006,1774359031595,-1147.7,0.00011187,2]
[408867007,1774359031604,-1147.7,0.00011559,2]
[408867008,1774359031613,-1147.7,0.00011932,2]
[408867009,1774359031623,-250.0,0.00012275,2]
[408867010,1774359031632,-250.0,0.00012297,2]
[408867011,1774359031641,-1200.0,0.00012304,2]
[408867012,1774359031650,-1147.7,0.00012305,2]
[408867013,1774359031660,-500.0,0.0001251,2]
[408867014,1774359031670,-300.0,0.00012677,2]
[408867015,1774359031679,-300.0,0.00012677,2]
[408867016,1774359031688,-300.0,0.00012677,2]
[408867017,1774359031698,-1147.7,0.00012678,2]
[408867018,1774359031708,-1041.81,0.00012811,2]
[408867019,1774359031721,-721.68,0.00012907,2]
[408867020,1774359031731,-2704.89494253,0.00013,15]
[408867021,1774359031741,-1147.7,0.00013051,2]
[408867022,1774359031753,-500.0,0.00013178,2]
[408867023,1774359031763,-1147.7,0.00013424,2]
[408867024,1774359031772,-1200.0,0.00013535,2]
[408867025,1774359031782,-158.06,0.00013699,2]
[408867026,1774359031792,-200.0,0.00013699,2]
[408867028,1774359031801,-1147.7,0.00013797,2]
[408867030,1774359031811,-420.0,0.00013907,2]
[408867033,1774359031820,-211.0,0.00013907,2]
[408867035,1774359031829,-509.0,0.00014,2]
[408867037,1774359031838,-1147.7,0.0001417,2]
[408867039,1774359031848,-158.14,0.00014198,2]
[408867041,1774359031859,-2295.91960755,0.0001421,7]
[408867043,1774359031868,-150.0,0.0001421,2]
[408867045,1774359031879,-1041.81,0.00014412,2]
[408867046,1774359031889,-420.79,0.00014642,2]
[408867047,1774359031899,-1500.0,0.000147,2]
[408867048,1774359031909,-153.5761414,0.00014947,2]
[408867049,1774359031919,-6762.1846,0.00014947,2]
[408867050,1774359031928,-5000.0,0.00014948,2]
[408867051,1774359031938,-875.6608,0.00014948,2]
[408867052,1774359031947,-22104.7709,0.00014948,2]
[408867053,1774359031957,-2649.69691727,0.00014973,2]
[408867054,1774359031967,-504.21603923,0.00014976,2]
[408867055,1774359031976,-6498.69273183,0.00014976,2]
[408867056,1774359031985,-3005.11685391,0.00014976,2]
[408867057,1774359031997,-768.64068924,0.00015038,2]
[408867058,1774359032006,-539.00140807,0.00015047,2]
[408867059,1774359032015,-307.86812449,0.00015047,2]
[408867060,1774359032025,-500.0,0.00015047,2]
[408867061,1774359032035,-500.0,0.00015047,2]
[408867062,1774359032045,-487.44102923,0.00015047,2]
[408867063,1774359032055,-500.0,0.00015047,2]
[408867064,1774359032067,-500.0,0.00015047,2]
[408867065,1774359032077,-252.33403521,0.00015047,2]
[408867066,1774359032086,-500.0,0.00015047,2]
[408867067,1774359032096,-384.17141746,0.00015047,2]
[408867068,1774359032105,-500.0,0.00015047,2]
[408867069,1774359032115,-364.60294237,0.00015047,2]
[408867070,1774359032125,-500.0,0.00015047,2]
[408867071,1774359032135,-500.0,0.00015047,2]
[408867072,1774359032145,-500.0,0.00015047,2]
[408867073,1774359032155,-263.62828171,0.00015047,2]
[408867074,1774359032165,-1277.50575807,0.00015047,2]
[408867075,1774359032176,-1277.50575807,0.00015047,2]
[408867076,1774359032187,-966.17328092,0.00015047,2]
[408867077,1774359032200,-311.33247715,0.00015047,2]
[408867078,1774359032210,-1277.50575807,0.00015047,2]
[408867079,1774359032222,-1277.50575807,0.00015047,2]
[408867080,1774359032232,-1277.50575807,0.00015047,2]
[408867081,1774359032241,-1277.50575807,0.00015047,2]
[408867082,1774359032255,-1277.50575807,0.00015047,2]
[408867083,1774359032264,-1277.50575807,0.00015047,2]
[408867084,1774359032273,-1277.50575807,0.00015047,2]
[408867085,1774359032282,-1277.50575807,0.00015047,2]
[408867086,1774359032293,-1277.50575807,0.00015047,2]
[408867087,1774359032302,-1277.50575807,0.00015047,2]
[408867088,1774359032312,-1277.50575807,0.00015047,2]
[408867089,1774359032322,-1277.50575807,0.00015047,2]
[408867090,1774359032332,-1277.50575807,0.00015047,2]
[408867091,1774359032342,-1277.50575807,0.00015047,2]
[408867092,1774359032351,-1277.50575807,0.00015047,2]
[408867093,1774359032360,-1277.50575807,0.00015047,2]
[408867094,1774359032370,-1277.50575807,0.00015047,2]
[408867095,1774359032379,-1277.50575807,0.00015047,2]
[408867096,1774359032388,-1277.50575807,0.00015047,2]
[408867097,1774359032397,-561.47694153,0.00015047,2]
[408867098,1774359032409,-716.02881654,0.00015047,2]
[408867099,1774359032418,-1277.50575807,0.00015047,2]
[408867100,1774359032428,-1277.50575807,0.00015047,2]
[408867101,1774359032437,-1277.50575807,0.00015047,2]
[408867102,1774359032447,-1277.50575807,0.00015047,2]
[408867103,1774359032456,-1277.50575807,0.00015047,2]
[408867104,1774359032465,-1277.50575807,0.00015047,2]
[408867105,1774359032474,-1277.50575807,0.00015047,2]
[408867106,1774359032487,-1277.50575807,0.00015047,2]
[408867107,1774359032500,-1277.50575807,0.00015047,2]
[408867108,1774359032510,-1277.50575807,0.00015047,2]
[408867109,1774359032519,-1277.50575807,0.00015047,2]
[408867110,1774359032528,-1277.50575807,0.00015047,2]
[408867111,1774359032537,-1277.50575807,0.00015047,2]
[408867112,1774359032546,-1277.50575807,0.00015047,2]
[408867113,1774359032556,-1277.50575807,0.00015047,2]
[408867114,1774359032566,-1277.50575807,0.00015047,2]
[408867115,1774359032576,-1277.50575807,0.00015047,2]
[408867116,1774359032586,-1277.50575807,0.00015047,2]
[408867117,1774359032596,-1277.50575807,0.00015047,2]
[408867118,1774359032606,-1277.50575807,0.00015047,2]
[408867119,1774359032616,-1277.50575807,0.00015047,2]
[408867120,1774359032626,-1277.50575807,0.00015047,2]
[408867121,1774359032636,-1277.50575807,0.00015047,2]
[408867122,1774359032645,-1277.50575807,0.00015047,2]
[408867123,1774359032655,-1277.50575807,0.00015047,2]
[408867124,1774359032665,-1277.50575807,0.00015047,2]
[408867125,1774359032674,-1277.50575807,0.00015047,2]
[408867126,1774359032684,-1277.50575807,0.00015047,2]
[408867127,1774359032694,-1277.50575807,0.00015047,2]
[408867128,1774359032703,-1277.50575807,0.00015047,2]
[408867129,1774359032713,-1277.50575807,0.00015047,2]
[408867130,1774359032723,-1277.50575807,0.00015047,2]
[408867131,1774359032732,-1277.50575807,0.00015047,2]
[408867132,1774359032741,-1277.50575807,0.00015047,2]
[408867133,1774359032753,-1277.50575807,0.00015047,2]
[408867134,1774359032762,-1277.50575807,0.00015047,2]
[408867135,1774359032771,-1277.50575807,0.00015047,2]
[408867136,1774359032780,-1277.50575807,0.00015047,2]
[408867137,1774359032789,-1277.50575807,0.00015047,2]
[408867138,1774359032799,-16605.25987057,0.00015048,2]
[408867139,1774359032812,-1363.17503185,0.00015048,2]
[408867140,1774359032823,-1650.18411172,0.00015048,2]
[408867141,1774359032834,-684031.89916654,0.00015048,2]
[408867142,1774359032852,-555.59417147,0.00015048,2]
[408867143,1774359032863,-1675.51726259,0.00015048,2]
[408867150,1774359037939,-1154.38291172,0.00015047,2]
[408867153,1774359037958,-157.48316721,0.00015047,2]
[408867155,1774359037967,-1311.86607893,0.00015047,2]
[408867157,1774359037976,-206.67246309,0.00015047,2]
[408867159,1774359037985,-731.10969324,0.00015047,2]
[408867161,1774359037997,-464.55337366,0.00015047,2]
[408867163,1774359038014,-116.20301203,0.00015047,2]
[408867165,1774359038024,-1025.10067176,0.00015047,2]
[408867168,1774359038035,-286.76540717,0.00015047,2]
[408867169,1774359038045,-777.63876768,0.00015047,2]
[408867172,1774359038056,-534.22731125,0.00015047,2]
[408867174,1774359038068,-1311.86607893,0.00015047,2]
[408867176,1774359038077,-1311.86607893,0.00015047,2]
[408867178,1774359038088,-1311.86607893,0.00015047,2]
[408867180,1774359038097,-1311.86607893,0.00015047,2]
[408867182,1774359038106,-770.48837303,0.00015047,2]
[408867184,1774359038117,-541.3777059,0.00015047,2]
[408867186,1774359038126,-1311.86607893,0.00015047,2]
[408867188,1774359038135,-1311.86607893,0.00015047,2]
[408867190,1774359038144,-1311.86607893,0.00015047,2]
[408867192,1774359038153,-1311.86607893,0.00015047,2]
[408867194,1774359038162,-1311.86607893,0.00015047,2]
[408867196,1774359038171,-1311.86607893,0.00015047,2]
[408867198,1774359038180,-1311.86607893,0.00015047,2]
[408867199,1774359038189,-1311.86607893,0.00015047,2]
[408867201,1774359038198,-1311.86607893,0.00015047,2]
[408867202,1774359038208,-1311.86607893,0.00015047,2]
[408867203,1774359038221,-1311.86607893,0.00015047,2]
[408867204,1774359038230,-1311.86607893,0.00015047,2]
[408867205,1774359038239,-1311.86607893,0.00015047,2]
[408867206,1774359038250,-1311.86607893,0.00015047,2]
[408867207,1774359038261,-1311.86607893,0.00015047,2]
[408867208,1774359038270,-1311.86607893,0.00015047,2]
[408867209,1774359038279,-75973.22771047,0.00015048,2]
[408867210,1774359038291,-558.69299275,0.00015048,2]
[408867211,1774359038306,-1577.95555338,0.00015048,2]
[408867212,1774359038317,-387.75502244,0.00015048,2]
[408867213,1774359038328,-160891.86403357,0.00015048,2]
[408867214,1774359038351,-37668.09320455,0.00015048,2]
[408867215,1774359038362,-2565.48097154,0.00015048,2]
[408867216,1774359038373,-2019.33827412,0.00015048,2]
[408867217,1774359038384,-1223.26752022,0.00015048,2]
[408867218,1774359038396,-847.0,0.00015048,2]
[408867219,1774359038407,-83139.77410323,0.00015048,2]
[408867221,1774359040016,-1427265.92099899,0.00015048,2]
[408867222,1774359040027,-500.0,0.00015073,2]
[408867223,1774359040036,-2649.69691727,0.00015076,2]
[408867224,1774359040045,-3005.11685389,0.00015079,2]
[408867225,1774359040054,-504.21603918,0.00015108,2]
[408867226,1774359040063,-6985.43,0.00015149,2]
[408867227,1774359040073,-2649.69691727,0.00015179,2]
[408867228,1774359040083,-3005.11685389,0.00015181,2]
[408867229,1774359040092,-504.21603918,0.0001524,2]
[408867230,1774359040101,-587.0,0.00015256,2]
[408867231,1774359040110,-2649.69691727,0.00015282,2]
[408867232,1774359040120,-3005.11685389,0.00015284,2]
[408867233,1774359040129,-255.0,0.00015333,2]
[408867234,1774359040138,-504.21603918,0.00015372,2]
[408867235,1774359040147,-178.54,0.00015382,2]
[408867236,1774359040157,-2649.69691727,0.00015385,2]
[408867237,1774359040167,-3005.11685389,0.00015387,2]
[408867238,1774359040176,-2649.69691727,0.00015488,2]
[408867239,1774359040185,-3005.11685389,0.00015489,2]
[408867240,1774359040194,-504.21603918,0.00015504,2]
[408867241,1774359040204,-4000.0,0.00015507,2]
[408867242,1774359040214,-2649.69691727,0.00015591,2]
[408867243,1774359040225,-3005.11685389,0.00015592,2]
[408867244,1774359040234,-504.21603918,0.00015636,2]
[408867245,1774359040243,-168.0,0.00015673,2]
[408867246,1774359040254,-1207.29466729,0.0001568,2]
[408867247,1774359040263,-2649.69691727,0.00015694,2]
[408867248,1774359040273,-3005.11685389,0.00015695,2]
[408867249,1774359040281,-156.83292897,0.00015731,2]
[408867250,1774359040292,-175.668,0.00015746,2]
[408867251,1774359040299,-168.0,0.0001575,2]
[408867252,1774359040308,-504.21603918,0.00015768,2]
[408867253,1774359040316,-610.60330757,0.00015773,2]
[408867254,1774359040325,-500.0,0.00015773,2]
[408867255,1774359040333,-249.62764045,0.00015773,2]
[408867256,1774359040341,-2649.69691727,0.00015797,2]
[408867258,1774359040349,-3005.11685389,0.00015797,2]
[408867259,1774359040358,-362520.7734,0.000158,2]
[408867260,1774359040366,-158.06,0.00015862,2]
[408867261,1774359040374,-270.208196,0.00015876,7]
[408867262,1774359040382,-2000.0,0.0001589,2]
[408867263,1774359040390,-4000.0,0.00015895,2]
[408867264,1774359040398,-967.3136,0.00015899,2]
[408867265,1774359040408,-1000.0,0.00015899,2]
[408867267,1774359040417,-2649.69691727,0.000159,2]
[408867269,1774359040426,-339.6280537,0.000159,2]
[408867270,1774359040436,-504.21603918,0.000159,2]
[408867271,1774359040445,-156.83292897,0.000159,2]
[408867272,1774359040455,-3005.11685389,0.000159,2]
[408867273,1774359040464,-2004.0,0.000159,5]
[408867274,1774359040473,-1595.0,0.000159,5]
[408867275,1774359040482,-160.0,0.00015927,2]
[408867276,1774359040491,-979.16666667,0.00015927,2]
[408867277,1774359040501,-158.14,0.00015973,2]
[408867278,1774359040512,-768.64068924,0.00015989,2]
[408867279,1774359040520,-924.0,0.0001599,2]
[408867280,1774359040530,-1215.0,0.0001599,2]
[408867281,1774359040538,-3515.0,0.0001599,2]
[408867282,1774359040547,-6009.0,0.0001599,2]
[408867283,1774359040556,-768.64068924,0.0001599,2]
[408867284,1774359040566,-563.70890882,0.00015998,2]
[408867285,1774359040575,-666.0,0.00015999,2]
[408867287,1774359040584,-135504.6935053,0.00015999,2]
[408867289,1774359040593,-155.0,0.00015999,2]
[408867291,1774359040602,-361076.37071969,0.00015999,2]
[408867292,1774359040639,-13338.76596186,0.00015999,2]
[408867302,1774359045786,-621.0,0.00015895,2]
[408867303,1774359045797,-5868.80158176,0.00015999,2]
[408867308,1774359418481,-250.0,0.00013,2]
[408867309,1774359418510,-250.0,0.00013487,2]
[408867310,1774359418539,-250.0,0.00013822,2]
[408867311,1774359418569,-114.0051349,0.00013973,2]
[408867312,1774359418802,-165.98,0.00011086,2]
[408867313,1774359418831,-1396.0502698,0.00013973,2]
[408867314,1774359421394,-165.98,0.00012934,2]
[408867315,1774359421432,-1875.9494604,0.00013973,2]
[408867316,1774359421608,-2295.40483149,0.00013973,2]
[408867317,1774359424393,-300.0,0.00013972,2]
[408867318,1774359424428,-200.0,0.00013973,2]
[408867319,1774359424463,-1500.01,0.00013973,2]
[408867320,1774359424662,-999.99,0.00013973,2]
[408867321,1774359424699,-409.20033702,0.00013973,2]
[408867322,1774359424732,-509.99997,0.00014,2]
[408867323,1774359424766,-200.0,0.00014016,2]
[408867324,1774359424799,-237.65448027,0.00014016,2]
[408867325,1774359427402,-500.0,0.00013973,2]
[408867326,1774359427432,-1500.01,0.00014016,2]
[408867327,1774359427535,-999.99,0.00014016,2]
[408867328,1774359427562,-500.03,0.00014016,2]
[408867330,1774359590356,-1347.4560144,0.00013916,2]
[408867331,1774359590388,-441.1890343,0.00013973,2]
[408867332,1774359590422,-1999.97,0.00014016,2]
[408867333,1774359590453,-922.44212245,0.00014016,2]